[Event "New Zealand Rapid Championship"]
[Site "Wellington"]
[Date "2023.01.12"]
[Round "5.6"]
[White "Perrin, Brent"]
[Black "Ker, Anthony F"]
[Result "0-1"]
[TimeControl "25+5"]
[BlackTitle "IM"]
[WhiteFideId "451380"]
[BlackFideId "4300084"]
[WhiteElo "1856"]
[BlackElo "2359"]

1. e4 {[%clk 00:25:07]} {[%emt 00:30:19]} c5 {[%clk 00:25:06]} 2. Nc3 {[%clk
00:25:10]} g6 {[%clk 00:25:00]} {[%emt 00:00:14]} 3. f4 {[%clk 00:25:13]} Bg7
{[%clk 00:24:56]} {[%emt 00:00:06]} 4. Nf3 {[%clk 00:25:15]} {[%emt 00:00:04]}
Nc6 {[%clk 00:24:52]} {[%emt 00:00:08]} 5. d3 {[%clk 00:25:09]} {[%emt
00:00:11]} d6 {[%clk 00:24:02]} {[%emt 00:00:55]} 6. Be2 {[%clk 00:25:11]}
{[%emt 00:00:07]} Bg4 {[%clk 00:23:41]} {[%emt 00:00:22]} 7. O-O {[%clk
00:25:09]} {[%emt 00:00:08]} Nf6 {[%clk 00:23:36]} {[%emt 00:00:09]} 8. Qe1
{[%clk 00:25:01]} {[%emt 00:00:13]} Nd4 {[%clk 00:22:02]} {[%emt 00:01:39]} 9.
Nxd4 {[%clk 00:24:15]} {[%emt 00:00:51]} cxd4 {[%clk 00:22:01]} {[%emt
00:00:06]} 10. Nb1 {[%clk 00:22:10]} {[%emt 00:02:10]} Rc8 {[%clk 00:21:47]}
{[%emt 00:00:19]} 11. Bxg4 {[%clk 00:20:21]} {[%emt 00:01:54]} Nxg4 {[%clk
00:21:45]} {[%emt 00:00:08]} 12. Qe2 {[%clk 00:20:09]} {[%emt 00:00:16]} Qd7
{[%clk 00:20:37]} {[%emt 00:01:13]} 13. h3 {[%clk 00:19:46]} {[%emt 00:00:28]}
Nf6 {[%clk 00:20:26]} {[%emt 00:00:16]} 14. f5 {[%clk 00:19:31]} {[%emt
00:00:20]} Qc6 {[%clk 00:19:42]} {[%emt 00:00:49]} 15. Na3 {[%clk 00:19:15]}
{[%emt 00:00:22]} Nd7 {[%clk 00:19:19]} {[%emt 00:00:27]} 16. fxg6 {[%clk
00:18:55]} {[%emt 00:00:24]} hxg6 {[%clk 00:19:10]} {[%emt 00:00:14]} 17. Qf2
{[%clk 00:18:04]} {[%emt 00:00:57]} Ne5 {[%clk 00:18:31]} {[%emt 00:00:43]} 18.
Nc4 {[%clk 00:17:56]} {[%emt 00:00:20]} O-O {[%clk 00:17:57]} {[%emt 00:00:33]}
19. Bg5 {[%clk 00:15:47]} {[%emt 00:02:15]} f6 {[%clk 00:16:31]} {[%emt
00:01:30]} 20. Bh4 {[%clk 00:13:01]} {[%emt 00:02:52]} Nxc4 {[%clk 00:16:23]}
{[%emt 00:00:12]} 21. dxc4 {[%clk 00:13:05]} {[%emt 00:00:02]} Qxc4 {[%clk
00:16:19]} {[%emt 00:00:26]} 22. b3 {[%clk 00:12:42]} {[%emt 00:00:28]} Qxc2
{[%clk 00:16:02]} {[%emt 00:00:05]} 23. Qxd4 {[%clk 00:12:37]} {[%emt
00:00:17]} Qc5 {[%clk 00:14:51]} {[%emt 00:01:08]} 24. Bf2 {[%clk 00:12:41]}
{[%emt 00:00:10]} Qxd4 {[%clk 00:13:45]} {[%emt 00:04:18]} 25. Bxd4 {[%clk
00:12:44]} a6 {[%clk 00:13:40]} 26. Rae1 {[%clk 00:11:21]} Rc2 {[%clk
00:13:36]} 27. Rf2 {[%clk 00:11:25]} Rfc8 {[%clk 00:13:23]} 28. Ree2 {[%clk
00:11:26]} Rxe2 {[%clk 00:13:05]} 29. Rxe2 {[%clk 00:11:29]} Kf7 {[%clk
00:13:00]} 30. Kf2 {[%clk 00:10:47]} {[%emt 00:00:19]} Bh6 {[%clk 00:12:33]}
{[%emt 00:00:31]} 31. h4 {[%clk 00:10:41]} {[%emt 00:00:12]} e5 {[%clk
00:12:02]} {[%emt 00:00:36]} 32. Bb2 {[%clk 00:09:21]} {[%emt 00:01:25]} f5
{[%clk 00:11:47]} {[%emt 00:00:19]} 33. exf5 {[%clk 00:08:20]} {[%emt
00:01:06]} gxf5 {[%clk 00:11:50]} {[%emt 00:00:02]} 34. Ba3 {[%clk 00:08:16]}
{[%emt 00:00:10]} Ke6 {[%clk 00:11:47]} {[%emt 00:00:08]} 35. g3 {[%clk
00:07:07]} {[%emt 00:01:14]} d5 {[%clk 00:10:46]} {[%emt 00:01:05]} 36. Bb2
{[%clk 00:06:40]} {[%emt 00:00:32]} e4 {[%clk 00:10:39]} {[%emt 00:00:13]} 37.
Bd4 {[%clk 00:06:43]} {[%emt 00:00:02]} Bf8 {[%clk 00:09:58]} {[%emt 00:00:45]}
38. Kg2 {[%clk 00:06:19]} {[%emt 00:00:29]} Bd6 {[%clk 00:09:51]} {[%emt
00:00:12]} 39. Kh3 {[%clk 00:04:28]} {[%emt 00:01:56]} Rg8 {[%clk 00:09:39]}
{[%emt 00:00:17]} 40. Rg2 {[%clk 00:04:32]} {[%emt 00:00:01]} Be5 {[%clk
00:09:17]} {[%emt 00:00:27]} 41. Bxe5 {[%clk 00:03:10]} {[%emt 00:01:26]} Kxe5
{[%clk 00:09:20]} {[%emt 00:00:02]} 42. h5 {[%clk 00:03:12]} {[%emt 00:00:03]}
d4 {[%clk 00:08:58]} {[%emt 00:00:27]} 43. Rc2 {[%clk 00:02:50]} {[%emt
00:00:27]} e3 {[%clk 00:08:40]} {[%emt 00:00:23]} 44. Kg2 {[%clk 00:02:12]}
{[%emt 00:00:43]} f4 {[%clk 00:07:54]} {[%emt 00:00:51]} 45. h6 {[%clk
00:01:52]} {[%emt 00:00:25]} Rxg3+ {[%clk 00:07:49]} {[%emt 00:00:10]} 46. Kh2
{[%clk 00:01:46]} {[%emt 00:00:11]} Rg6 {[%clk 00:07:27]} {[%emt 00:00:26]} 0-1

[Event "New Zealand Rapid Championship"]
[Site "Wellington"]
[Date "2023.01.12"]
[Round "5.7"]
[White "Carpinter, Anthony L"]
[Black "Nyberg, Michael"]
[Result "1-0"]
[TimeControl "25+5"]
[WhiteFideId "4300238"]
[BlackFideId "4301064"]
[WhiteElo "2147"]
[BlackElo "1951"]

1. Nf3 {[%clk 00:24:54]} {[%emt 00:00:04]} Nf6 {[%clk 00:24:56]} {[%emt
00:00:15]} 2. e3 {[%clk 00:24:44]} {[%emt 00:00:15]} b6 {[%clk 00:24:14]}
{[%emt 00:00:52]} 3. c4 {[%clk 00:23:11]} {[%emt 00:01:33]} e6 {[%clk
00:23:23]} {[%emt 00:00:56]} 4. b3 {[%clk 00:22:50]} {[%emt 00:00:27]} Bb7
{[%clk 00:23:17]} {[%emt 00:00:11]} 5. Bb2 {[%clk 00:22:48]} {[%emt 00:00:07]}
Be7 {[%clk 00:22:47]} {[%emt 00:00:34]} 6. Be2 {[%clk 00:22:46]} {[%emt
00:00:08]} d6 {[%clk 00:22:34]} {[%emt 00:00:18]} 7. d4 {[%clk 00:21:42]}
{[%emt 00:01:11]} c5 {[%clk 00:21:40]} {[%emt 00:00:56]} 8. O-O {[%clk
00:21:32]} {[%emt 00:00:16]} Nbd7 {[%clk 00:21:31]} {[%emt 00:00:14]} 9. Nc3
{[%clk 00:20:35]} {[%emt 00:01:04]} Ne4 {[%clk 00:19:24]} {[%emt 00:02:09]} 10.
Qc2 {[%clk 00:20:17]} {[%emt 00:00:25]} f5 {[%clk 00:18:31]} {[%emt 00:00:58]}
11. Rad1 {[%clk 00:19:48]} {[%emt 00:00:34]} O-O {[%clk 00:18:01]} {[%emt
00:00:43]} 12. dxc5 {[%clk 00:15:56]} {[%emt 00:03:49]} bxc5 {[%clk 00:16:00]}
{[%emt 00:02:06]} 13. Nd2 {[%clk 00:14:36]} {[%emt 00:01:25]} Ndf6 {[%clk
00:14:31]} {[%emt 00:01:39]} 14. f3 {[%clk 00:13:00]} {[%emt 00:01:41]} Ng5
{[%clk 00:13:34]} {[%emt 00:01:02]} 15. e4 {[%clk 00:09:31]} {[%emt 00:04:58]}
fxe4 {[%clk 00:10:51]} {[%emt 00:01:19]} 16. f4 {[%clk 00:09:28]} {[%emt
00:00:07]} Nf7 {[%clk 00:08:38]} {[%emt 00:02:18]} 17. Ndxe4 {[%clk 00:09:25]}
{[%emt 00:00:08]} Qc8 {[%clk 00:05:27]} {[%emt 00:03:16]} 18. Bf3 {[%clk
00:07:44]} {[%emt 00:01:47]} Nxe4 {[%clk 00:03:58]} {[%emt 00:01:34]} 19. Bxe4
{[%clk 00:07:20]} {[%emt 00:00:29]} Bxe4 {[%clk 00:03:49]} {[%emt 00:00:14]} 20.
Qxe4 {[%clk 00:07:04]} {[%emt 00:00:19]} Bf6 {[%clk 00:03:19]} {[%emt
00:00:37]} 21. Rd2 {[%clk 00:05:38]} {[%emt 00:01:31]} Rb8 {[%clk 00:02:23]}
{[%emt 00:01:01]} 22. Nb5 {[%clk 00:05:04]} {[%emt 00:00:39]} Bxb2 {[%clk
00:01:59]} {[%emt 00:00:29]} 23. Rxb2 {[%clk 00:05:08]} {[%emt 00:00:02]} a6
{[%clk 00:02:03]} {[%emt 00:00:01]} 24. Nc3 {[%clk 00:05:05]} {[%emt 00:00:07]}
Re8 {[%clk 00:01:43]} {[%emt 00:00:25]} 25. Rd2 {[%clk 00:04:33]} {[%emt
00:00:37]} Qc7 {[%clk 00:01:47]} {[%emt 00:00:01]} 26. Rfd1 {[%clk 00:04:14]}
{[%emt 00:00:24]} Qa5 {[%clk 00:01:51]} {[%emt 00:00:01]} 27. Qf3 {[%clk
00:04:03]} {[%emt 00:00:16]} Qb4 {[%clk 00:01:31]} {[%emt 00:00:25]} 28. Rd3
{[%clk 00:03:18]} {[%emt 00:00:48]} h6 {[%clk 00:01:15]} {[%emt 00:00:22]} 29.
R1d2 {[%clk 00:02:40]} {[%emt 00:00:43]} Rf8 {[%clk 00:01:17]} {[%emt
00:00:02]} 30. Qe4 {[%clk 00:02:40]} {[%emt 00:00:05]} Rfe8 {[%clk 00:01:10]}
{[%emt 00:00:12]} 31. Qg6 {[%clk 00:02:42]} {[%emt 00:00:03]} Nh8 {[%clk
00:00:55]} {[%emt 00:00:21]} 32. Qh5 {[%clk 00:02:39]} {[%emt 00:00:08]} Nf7
{[%clk 00:00:58]} {[%emt 00:00:01]} 33. g4 {[%clk 00:02:36]} {[%emt 00:00:08]}
Qb7 {[%clk 00:00:55]} {[%emt 00:00:08]} 34. g5 {[%clk 00:02:32]} {[%emt
00:00:10]} hxg5 {[%clk 00:00:52]} {[%emt 00:00:08]} 35. fxg5 {[%clk 00:02:34]}
{[%emt 00:00:02]} Qe7 {[%clk 00:00:56]} {[%emt 00:00:03]} 36. Rg2 {[%clk
00:02:31]} {[%emt 00:00:08]} Rf8 {[%clk 00:00:47]} {[%emt 00:00:14]} 37. Rh3
{[%clk 00:02:34]} {[%emt 00:00:02]} Ne5 {[%clk 00:00:39]} {[%emt 00:00:12]} 38.
g6 {[%clk 00:02:19]} {[%emt 00:00:20]} Nxg6 {[%clk 00:00:36]} {[%emt 00:00:09]}
39. Qh7+ {[%clk 00:02:08]} {[%emt 00:00:15]} Kf7 {[%clk 00:00:37]} {[%emt
00:00:04]} 40. Qxg6+ {[%clk 00:02:08]} {[%emt 00:00:06]} Rh8 {[%clk 00:00:00]}
{[%emt 00:00:24]} 1-0

[Event "New Zealand Rapid Championship"]
[Site "Wellington"]
[Date "2023.01.12"]
[Round "5.8"]
[White "Sole, Michael D"]
[Black "Yu, Zachary"]
[Result "1-0"]
[TimeControl "25+5"]
[WhiteFideId "4309030"]
[BlackFideId "4311930"]
[WhiteElo "2093"]
[BlackElo "1675"]

1. e4 {[%clk 00:25:04]} {[%emt 00:00:16]} c5 {[%clk 00:25:10]} 2. Nf3 {[%clk
00:25:00]} d6 {[%clk 00:25:14]} 3. d4 {[%clk 00:24:55]} {[%emt 00:00:13]} cxd4
{[%clk 00:25:18]} 4. Nxd4 {[%clk 00:24:50]} {[%emt 00:00:10]} Nf6 {[%clk
00:25:22]} 5. f3 {[%clk 00:22:50]} {[%emt 00:02:03]} e5 {[%clk 00:25:06]}
{[%emt 00:00:21]} 6. Nb3 {[%clk 00:22:49]} {[%emt 00:00:06]} d5 {[%clk
00:25:10]} {[%emt 00:00:01]} 7. Bg5 {[%clk 00:21:49]} {[%emt 00:01:05]} Be6
{[%clk 00:19:58]} {[%emt 00:05:21]} 8. Bxf6 {[%clk 00:21:45]} {[%emt 00:00:06]}
gxf6 {[%clk 00:20:01]} {[%emt 00:00:02]} 9. exd5 {[%clk 00:21:36]} {[%emt
00:00:14]} Qxd5 {[%clk 00:17:55]} {[%emt 00:02:13]} 10. Qxd5 {[%clk 00:20:59]}
{[%emt 00:00:40]} Bxd5 {[%clk 00:17:59]} {[%emt 00:00:02]} 11. Nc3 {[%clk
00:21:02]} {[%emt 00:00:02]} Bb4 {[%clk 00:18:03]} 12. O-O-O {[%clk 00:20:45]}
{[%emt 00:00:22]} Bxb3 {[%clk 00:14:25]} {[%emt 00:03:42]} 13. axb3 {[%clk
00:20:21]} {[%emt 00:00:29]} Bxc3 {[%clk 00:14:28]} {[%emt 00:00:02]} 14. bxc3
{[%clk 00:19:55]} {[%emt 00:00:31]} Ke7 {[%clk 00:13:19]} {[%emt 00:01:22]} 15.
Bc4 {[%clk 00:19:50]} {[%emt 00:00:02]} Nc6 {[%clk 00:13:02]} {[%emt 00:00:22]}
16. Bd5 {[%clk 00:19:15]} {[%emt 00:00:39]} Rac8 {[%clk 00:12:30]} {[%emt
00:00:38]} 17. Kb2 {[%clk 00:19:10]} {[%emt 00:00:11]} f5 {[%clk 00:11:07]}
{[%emt 00:01:27]} 18. Rhe1 {[%clk 00:18:59]} {[%emt 00:00:16]} Kf6 {[%clk
00:09:48]} {[%emt 00:01:39]} 19. g3 {[%clk 00:16:41]} {[%emt 00:02:09]} Rhg8
{[%clk 00:09:23]} {[%emt 00:04:18]} 20. Rd2 {[%clk 00:15:17]} h5 {[%clk
00:07:38]} 21. Red1 {[%clk 00:15:06]} Rgd8 {[%clk 00:06:52]} {[%emt 00:00:37]}
22. b4 {[%clk 00:14:37]} {[%emt 00:00:35]} a6 {[%clk 00:06:31]} {[%emt
00:00:25]} 23. Kb3 {[%clk 00:14:04]} {[%emt 00:00:37]} b5 {[%clk 00:05:05]}
{[%emt 00:01:32]} 24. Rd3 {[%clk 00:13:42]} {[%emt 00:00:27]} Rd6 {[%clk
00:04:00]} {[%emt 00:01:10]} 25. Ra1 {[%clk 00:13:22]} {[%emt 00:00:24]} Ra8
{[%clk 00:03:26]} {[%emt 00:00:40]} 26. Be4 {[%clk 00:10:44]} {[%emt 00:02:44]}
Rxd3 {[%clk 00:01:48]} {[%emt 00:01:43]} 27. Bxd3 {[%clk 00:10:16]} {[%emt
00:00:32]} Ra7 {[%clk 00:01:52]} 28. Bf1 {[%clk 00:09:43]} {[%emt 00:00:38]}
Kg5 {[%clk 00:01:35]} {[%emt 00:00:23]} 29. h4+ {[%clk 00:09:32]} {[%emt
00:00:15]} Kf6 {[%clk 00:00:59]} {[%emt 00:00:42]} 30. Rd1 {[%clk 00:09:34]}
{[%emt 00:00:03]} Ke6 {[%clk 00:00:56]} {[%emt 00:00:07]} 31. Ra1 {[%clk
00:09:27]} {[%emt 00:00:13]} e4 {[%clk 00:00:54]} {[%emt 00:00:07]} 32. fxe4
{[%clk 00:09:19]} {[%emt 00:00:12]} fxe4 {[%clk 00:00:58]} 33. Be2 {[%clk
00:09:23]} {[%emt 00:00:01]} f5 {[%clk 00:00:41]} {[%emt 00:00:22]} 34. Bxh5
{[%clk 00:09:26]} {[%emt 00:00:02]} a5 {[%clk 00:00:39]} {[%emt 00:00:08]} 35.
Be2 {[%clk 00:09:15]} {[%emt 00:00:16]} a4+ {[%clk 00:00:35]} {[%emt 00:00:10]}
36. Kb2 {[%clk 00:09:18]} {[%emt 00:00:02]} Rb7 {[%clk 00:00:39]} 37. h5 {[%clk
00:08:56]} {[%emt 00:00:27]} Ne7 {[%clk 00:00:11]} {[%emt 00:00:33]} 38. Rh1
{[%clk 00:08:26]} {[%emt 00:00:35]} Kd5 {[%emt 00:00:24]} 39. h6 Ng6 {[%emt
00:00:01]} 40. h7 {[%emt 00:00:01]} Nh8 41. Rh6 {[%emt 00:00:05]} Ke5 {[%emt
00:00:08]} 42. Rc6 {[%clk 00:25:05]} {[%emt 00:00:07]} 1-0

[Event "New Zealand Rapid Championship"]
[Site "Wellington"]
[Date "2023.01.12"]
[Round "5.9"]
[White "Cummings, Nick"]
[Black "Loke, Kayden"]
[Result "1-0"]
[TimeControl "25+5"]
[WhiteFideId "4301218"]
[BlackFideId "4313186"]
[WhiteElo "2038"]
[BlackElo "1907"]

1. Nf3 {[%clk 00:25:09]} {[%emt 00:09:01]} Nf6 {[%clk 00:25:07]} {[%emt
00:00:04]} 2. c4 {[%clk 00:25:12]} {[%emt 00:00:02]} e6 {[%clk 00:25:08]}
{[%emt 00:00:04]} 3. g3 {[%clk 00:25:11]} {[%emt 00:00:06]} d5 {[%clk
00:25:09]} {[%emt 00:00:04]} 4. d4 {[%clk 00:25:14]} {[%emt 00:00:02]} Bb4+
{[%clk 00:25:01]} {[%emt 00:00:13]} 5. Bd2 {[%clk 00:25:04]} {[%emt 00:00:15]}
Bxd2+ {[%clk 00:24:58]} {[%emt 00:00:08]} 6. Qxd2 {[%clk 00:24:35]} {[%emt
00:00:34]} O-O {[%clk 00:24:47]} {[%emt 00:00:16]} 7. Bg2 {[%clk 00:24:22]}
{[%emt 00:00:17]} b6 {[%clk 00:24:14]} {[%emt 00:00:40]} 8. Nc3 {[%clk
00:24:06]} {[%emt 00:00:20]} Bb7 {[%clk 00:24:09]} {[%emt 00:00:10]} 9. Ne5
{[%clk 00:22:35]} {[%emt 00:01:36]} Nbd7 {[%clk 00:23:52]} {[%emt 00:00:23]} 10.
O-O {[%clk 00:19:55]} {[%emt 00:02:45]} Rb8 {[%clk 00:22:43]} {[%emt 00:01:15]}
11. cxd5 {[%clk 00:15:07]} {[%emt 00:04:52]} Nxd5 {[%clk 00:22:38]} {[%emt
00:00:10]} 12. Nxd5 {[%clk 00:14:23]} {[%emt 00:00:49]} Bxd5 {[%clk 00:22:38]}
{[%emt 00:00:05]} 13. Bxd5 {[%clk 00:14:21]} {[%emt 00:00:07]} exd5 {[%clk
00:22:40]} {[%emt 00:00:03]} 14. Nc6 {[%clk 00:14:23]} {[%emt 00:00:03]} Qf6
{[%clk 00:22:18]} {[%emt 00:00:27]} 15. Nxb8 {[%clk 00:14:22]} {[%emt
00:00:07]} Rxb8 {[%clk 00:22:14]} {[%emt 00:00:09]} 16. Rac1 {[%clk 00:14:25]}
{[%emt 00:00:02]} Qd6 {[%clk 00:22:05]} {[%emt 00:00:15]} 17. Qf4 {[%clk
00:13:32]} {[%emt 00:00:56]} Qxf4 {[%clk 00:22:05]} {[%emt 00:00:06]} 18. gxf4
{[%clk 00:13:36]} {[%emt 00:00:01]} c5 {[%clk 00:22:08]} {[%emt 00:00:05]} 19.
dxc5 {[%clk 00:13:26]} {[%emt 00:00:12]} bxc5 {[%clk 00:22:09]} {[%emt
00:00:05]} 20. b3 {[%clk 00:13:29]} Kf8 {[%clk 00:22:05]} {[%emt 00:00:08]} 21.
Rfd1 {[%clk 00:13:32]} {[%emt 00:00:21]} Ke7 {[%clk 00:20:36]} {[%emt
00:01:16]} 22. Rxd5 {[%clk 00:13:22]} {[%emt 00:00:16]} Rb6 {[%clk 00:20:40]}
{[%emt 00:00:01]} 23. Rcd1 {[%clk 00:12:59]} {[%emt 00:00:28]} Rb7 {[%clk
00:20:40]} {[%emt 00:00:06]} 24. e3 {[%clk 00:12:32]} {[%emt 00:00:49]} Rc7
{[%clk 00:20:41]} 25. Kg2 {[%clk 00:11:39]} {[%emt 00:00:44]} a5 {[%clk
00:20:42]} {[%emt 00:00:04]} 26. Kf3 {[%clk 00:11:06]} {[%emt 00:00:49]} a4
{[%clk 00:20:43]} 27. Rxd7+ {[%clk 00:09:44]} {[%emt 00:01:21]} Rxd7 {[%clk
00:20:43]} {[%emt 00:00:04]} 28. Rxd7+ {[%clk 00:09:47]} {[%emt 00:00:01]} Kxd7
{[%clk 00:20:47]} {[%emt 00:00:23]} 29. bxa4 {[%clk 00:09:47]} f5 {[%clk
00:20:18]} {[%emt 00:00:22]} 30. Ke2 {[%clk 00:08:28]} {[%emt 00:01:18]} Kc6
{[%clk 00:20:14]} {[%emt 00:04:09]} 31. Kd3 {[%clk 00:08:30]} Kd5 {[%clk
00:20:16]} 32. a5 {[%clk 00:08:32]} c4+ {[%clk 00:20:16]} 33. Kc3 {[%clk
00:08:35]} Kc5 {[%clk 00:20:19]} 34. a6 {[%clk 00:08:38]} Kb6 {[%clk 00:20:20]}
35. Kxc4 {[%clk 00:08:41]} Kxa6 {[%clk 00:20:21]} 36. Kd5 {[%clk 00:08:43]} Ka5
{[%clk 00:20:20]} 37. Ke5 {[%clk 00:08:47]} g6 {[%clk 00:20:20]} 38. Kf6 {[%clk
00:08:50]} Ka4 {[%clk 00:20:16]} 39. Kg7 {[%clk 00:08:54]} h5 {[%clk 00:19:52]}
40. Kxg6 {[%clk 00:08:56]} Ka3 {[%clk 00:19:54]} 41. Kxf5 {[%clk 00:08:58]}
Kxa2 {[%clk 00:19:55]} 42. e4 {[%clk 00:09:01]} Kb3 {[%clk 00:19:54]} 43. e5
{[%clk 00:09:04]} Kc4 {[%clk 00:19:40]} 44. e6 {[%clk 00:09:06]} Kd5 {[%clk
00:19:39]} 45. e7 {[%clk 00:09:09]} Kd6 {[%clk 00:19:40]} 46. e8=Q {[%clk
00:09:03]} 1-0

[Event "New Zealand Rapid Championship"]
[Site "Wellington"]
[Date "2023.01.12"]
[Round "5.10"]
[White "Winsley, Daniel"]
[Black "Zhang, Kendrick Botong"]
[Result "0-1"]
[TimeControl "25+5"]
[BlackTitle "CM"]
[WhiteFideId "4315138"]
[BlackFideId "4307704"]
[WhiteElo "1400"]
[BlackElo "1870"]

1. b4 {[%clk 00:25:07]} {[%emt 00:00:14]} d5 {[%clk 00:22:18]} {[%emt
00:02:41]} 2. Bb2 {[%clk 00:25:10]} {[%emt 00:00:02]} Bf5 {[%clk 00:22:05]}
{[%emt 00:00:18]} 3. Nf3 {[%clk 00:24:56]} {[%emt 00:00:20]} e6 {[%clk
00:21:58]} {[%emt 00:00:11]} 4. e3 {[%clk 00:24:59]} {[%emt 00:00:03]} Nf6
{[%clk 00:21:51]} {[%emt 00:00:11]} 5. c4 {[%clk 00:24:18]} {[%emt 00:00:46]}
dxc4 {[%clk 00:18:17]} {[%emt 00:03:39]} 6. Bxc4 {[%clk 00:23:57]} {[%emt
00:00:26]} Nbd7 {[%clk 00:18:20]} {[%emt 00:00:02]} 7. O-O {[%clk 00:21:03]}
{[%emt 00:02:59]} Nb6 {[%clk 00:16:38]} {[%emt 00:01:46]} 8. Be2 {[%clk
00:19:59]} {[%emt 00:01:11]} Bxb4 {[%clk 00:16:33]} {[%emt 00:00:08]} 9. Qb3
{[%clk 00:19:08]} {[%emt 00:00:57]} Be7 {[%clk 00:16:23]} {[%emt 00:00:15]} 10.
Nd4 {[%clk 00:16:46]} {[%emt 00:02:33]} Be4 {[%clk 00:15:07]} {[%emt 00:01:14]}
11. d3 {[%clk 00:15:35]} {[%emt 00:01:17]} Bg6 {[%clk 00:10:36]} {[%emt
00:04:36]} 12. Bf3 {[%clk 00:13:49]} {[%emt 00:05:03]} Nfd5 {[%clk 00:10:08]}
13. a3 {[%clk 00:10:21]} {[%emt 00:00:53]} O-O {[%clk 00:09:38]} {[%emt
00:00:34]} 14. Rc1 {[%clk 00:09:27]} {[%emt 00:00:59]} c6 {[%clk 00:08:51]}
{[%emt 00:00:51]} 15. Bg4 {[%clk 00:07:25]} {[%emt 00:02:08]} Bf6 {[%clk
00:07:28]} {[%emt 00:01:27]} 16. Nd2 {[%clk 00:05:59]} {[%emt 00:01:31]} Nf4
{[%clk 00:05:49]} {[%emt 00:01:45]} 17. Ne4 {[%clk 00:04:13]} {[%emt 00:01:52]}
Bxe4 {[%clk 00:02:31]} {[%emt 00:03:22]} 18. dxe4 {[%clk 00:04:02]} {[%emt
00:00:16]} Ng6 {[%clk 00:02:01]} {[%emt 00:00:36]} 19. Rd1 {[%clk 00:03:41]}
{[%emt 00:00:27]} Qe7 {[%clk 00:01:59]} {[%emt 00:00:06]} 20. f4 {[%clk
00:03:25]} {[%emt 00:00:21]} e5 {[%clk 00:01:06]} {[%emt 00:00:57]} 21. Nf5
{[%clk 00:03:06]} {[%emt 00:00:24]} Qc7 {[%clk 00:01:07]} {[%emt 00:00:05]} 22.
g3 {[%clk 00:02:37]} {[%emt 00:00:34]} Rad8 {[%clk 00:00:46]} {[%emt 00:00:26]}
23. Rxd8 {[%clk 00:01:54]} {[%emt 00:00:48]} Rxd8 {[%clk 00:00:47]} {[%emt
00:00:04]} 24. Rd1 {[%clk 00:01:51]} {[%emt 00:00:08]} Rxd1+ {[%clk 00:00:34]}
{[%emt 00:00:18]} 25. Qxd1 {[%clk 00:01:50]} {[%emt 00:00:06]} Nc4 {[%clk
00:00:36]} {[%emt 00:00:03]} 26. Bc1 {[%clk 00:01:37]} {[%emt 00:00:19]} exf4
{[%clk 00:00:38]} {[%emt 00:00:03]} 27. exf4 {[%clk 00:01:22]} {[%emt
00:00:19]} Ne7 {[%clk 00:00:37]} {[%emt 00:00:07]} 28. e5 {[%clk 00:00:57]}
{[%emt 00:00:31]} Nxf5 {[%clk 00:00:41]} {[%emt 00:00:01]} 29. Bxf5 {[%clk
00:01:00]} {[%emt 00:00:01]} Be7 {[%clk 00:00:44]} {[%emt 00:00:02]} 30. Kg2
{[%clk 00:00:28]} {[%emt 00:00:37]} Bxa3 {[%clk 00:00:37]} {[%emt 00:00:12]} 31.
Bxa3 {[%clk 00:00:12]} {[%emt 00:00:21]} Ne3+ {[%clk 00:00:41]} {[%emt
00:00:01]} 0-1